bitfinex/quotes_BTCUSD_20241101
["timestamp","ask_amount","ask_price","bid_price","bid_amount"]
[1730483016342,0.52816306,69691.0,69690.0,0.012821]
[1730483016822,0.62816306,69691.0,69690.0,0.012821]
[1730483017072,0.62816306,69691.0,69690.0,0.000821]
[1730483017302,0.62816306,69691.0,69690.0,0.011821]
[1730483018437,0.62816306,69691.0,69690.0,0.006821]
[1730483018902,0.63016306,69691.0,69690.0,0.006821]
[1730483019121,0.63016306,69691.0,69690.0,0.000821]
[1730483019357,0.63316306,69691.0,69690.0,0.000821]
[1730483019807,0.62816306,69691.0,69690.0,0.000821]
[1730483020059,0.63416306,69691.0,69690.0,0.001821]
[1730483020285,0.77264036,69691.0,69690.0,0.001821]
[1730483020510,0.63416306,69691.0,69690.0,0.001821]
[1730483021211,0.63616306,69691.0,69690.0,0.001821]
[1730483023009,0.60160431,69691.0,69690.0,0.001821]
[1730483023262,0.63616505,69691.0,69690.0,0.001821]
[1730483023474,0.63016505,69691.0,69690.0,0.000821]
[1730483023724,0.71800935,69691.0,69690.0,0.000821]
[1730483024143,0.72000935,69691.0,69690.0,0.000821]
[1730483024334,0.63416505,69691.0,69690.0,0.000821]
[1730483024573,0.63216505,69691.0,69690.0,0.000821]
[1730483024984,0.4907098,69691.0,69690.0,0.000821]
[1730483025332,0.48971413,69691.0,69690.0,0.000821]
[1730483025800,0.49171413,69691.0,69690.0,0.000821]
[1730483026005,0.49571413,69691.0,69690.0,0.000821]
[1730483026233,0.46115339,69691.0,69690.0,0.000821]
[1730483026436,0.457159,69691.0,69690.0,0.000821]
[1730483026641,0.49172962,69691.0,69690.0,0.000821]
[1730483026833,0.49472962,69691.0,69690.0,0.000821]
[1730483027135,0.49272962,69691.0,69690.0,0.000821]
[1730483027341,0.49372962,69691.0,69690.0,0.000821]
[1730483029168,0.07313962,69691.0,69690.0,0.000821]
[1730483029507,0.03059216,69691.0,69690.0,0.144313]
[1730483029919,0.03061736,69691.0,69690.0,0.144313]
[1730483030125,0.02761736,69691.0,69690.0,0.144313]
[1730483030713,0.02661736,69691.0,69690.0,0.144313]
[1730483030887,0.02661736,69691.0,69690.0,0.149313]
[1730483031303,0.02661736,69691.0,69690.0,0.153313]
[1730483033070,0.2151571,69698.0,69690.0,0.01269062]
[1730483033279,0.3151571,69698.0,69697.0,0.143478]
[1730483033433,0.34178564,69698.0,69697.0,0.143478]
[1730483033643,0.12662836,69698.0,69697.0,0.143478]
[1730483034041,0.12663385,69698.0,69697.0,0.143478]
[1730483034398,0.02663385,69698.0,69697.0,0.143478]
[1730483035056,0.02663385,69698.0,69696.0,0.286959]
[1730483035057,0.02963385,69698.0,69696.0,0.143479]
[1730483035260,0.31358985,69697.0,69690.0,0.000821]
[1730483035445,0.02663385,69696.0,69690.0,0.000821]
[1730483035576,0.02663385,69695.0,69690.0,0.000821]
[1730483035781,0.14349,69691.0,69690.0,0.000821]
[1730483035980,0.17012385,69691.0,69690.0,0.000821]
[1730483036380,0.25052385,69691.0,69690.0,0.000821]
[1730483036589,0.10703385,69691.0,69690.0,0.000821]
[1730483036795,0.10703385,69691.0,69690.0,0.144313]
[1730483037264,0.10703408,69691.0,69690.0,0.000821]
[1730483037467,0.02663408,69691.0,69690.0,0.144313]
[1730483038043,0.01331691,69691.0,69690.0,0.153313]
[1730483038177,0.2151571,69698.0,69690.0,0.153313]
[1730483038178,0.3151571,69698.0,69697.0,0.143478]
[1730483038397,0.3417966,69698.0,69697.0,0.143478]
[1730483038600,0.0266395,69698.0,69697.0,0.143478]
[1730483039435,0.01332004,69698.0,69697.0,0.143478]
[1730483039878,0.01632004,69698.0,69697.0,0.143478]
[1730483040513,0.01732004,69698.0,69697.0,0.143478]
[1730483040783,0.01732033,69698.0,69697.0,0.143478]
[1730483040927,0.03064061,69698.0,69697.0,0.143478]
[1730483041582,0.01332028,69698.0,69697.0,0.143478]
[1730483041814,0.02664109,69698.0,69697.0,0.143478]
[1730483042017,0.02864109,69698.0,69697.0,0.143478]
[1730483043801,0.002,69698.0,69697.0,0.143478]
[1730483044162,0.02865008,69698.0,69697.0,0.14634733]
[1730483044362,0.002,69698.0,69697.0,0.28193325]
[1730483044775,0.002,69698.0,69697.0,0.34263325]
[1730483045151,0.62792376,69700.0,69699.0,0.143474]
[1730483045388,0.62792376,69700.0,69699.0,0.4147912]
[1730483045548,0.62792376,69700.0,69699.0,0.54765315]
[1730483045767,0.62792376,69700.0,69699.0,0.63955315]
[1730483045973,0.62792376,69700.0,69699.0,0.5066912]
[1730483047916,0.62792376,69700.0,69699.0,0.5206912]
[1730483048132,0.62792376,69700.0,69699.0,0.5346912]
[1730483048420,0.0792,69722.0,69699.0,0.5346912]
[1730483048421,0.2151571,69725.0,69701.0,0.023]
[1730483048623,0.2151571,69733.0,69732.0,0.143406]
[1730483048875,0.2151571,69733.0,69732.0,0.4147232]
[1730483049323,0.2151571,69733.0,69732.0,0.143406]
[1730483049542,0.001626,69734.0,69733.0,0.143404]
[1730483051193,0.001626,69734.0,69733.0,0.152404]
[1730483051410,0.001626,69734.0,69733.0,0.162404]
[1730483052048,0.001626,69734.0,69733.0,0.153404]
[1730483052546,0.001626,69734.0,69733.0,0.158404]
[1730483053015,0.145028,69734.0,69733.0,0.005]
[1730483053265,0.222928,69734.0,69733.0,0.005]
[1730483053521,0.222928,69734.0,69733.0,0.011]
[1730483053736,0.222928,69734.0,69733.0,0.006]
[1730483053951,0.57654035,69734.0,69733.0,0.006]
[1730483054161,0.62605585,69734.0,69733.0,0.011]
[1730483054379,0.72035585,69734.0,69733.0,0.005]
[1730483054584,0.72035601,69734.0,69733.0,0.005]
[1730483054789,0.59546537,69734.0,69733.0,0.008]
[1730483055202,0.1,69731.0,69728.0,0.286828]
[1730483055404,0.1,69731.0,69712.0,0.19909446]
[1730483055405,0.01326074,69730.0,69721.0,0.286854]
[1730483055606,0.01326074,69730.0,69726.0,0.143417]
[1730483055816,0.143412,69729.0,69726.0,0.143417]
[1730483056237,0.143416,69727.0,69724.0,0.143422]
[1730483056493,0.1,69733.0,69721.0,0.01]
[1730483056695,0.1,69731.0,69725.0,0.143419]
[1730483056869,0.1,69731.0,69721.0,0.01]
[1730483056870,0.143416,69727.0,69721.0,0.01]
[1730483057079,0.143416,69727.0,69724.0,0.143422]
[1730483057306,0.143416,69727.0,69724.0,0.150422]
[1730483057577,0.143412,69729.0,69726.0,0.143418]
[1730483057786,0.286828,69729.0,69724.0,0.007]
[1730483058159,0.25932808,69754.0,69724.0,0.007]
[1730483058160,0.02651324,69728.0,69724.0,0.293844]
[1730483058374,0.286814,69732.0,69726.0,0.143418]
[1730483058375,0.02651324,69727.0,69726.0,0.143418]
[1730483058593,0.14341,69730.0,69724.0,0.293844]
[1730483058806,0.02651956,69729.0,69728.0,0.143414]
[1730483059028,0.09278698,69734.0,69733.0,0.143404]
[1730483059260,0.04141062,69734.0,69733.0,0.143404]
[1730483059494,0.01488698,69734.0,69733.0,0.1462719]
[1730483059720,0.01488698,69734.0,69733.0,0.143404]
[1730483059974,0.01488698,69734.0,69730.0,0.286816]
[1730483060197,0.01488698,69734.0,69726.0,0.143418]
[1730483060425,0.15828898,69734.0,69731.0,0.143407]
[1730483060648,0.02652832,69733.0,69732.0,0.143405]
[1730483061558,0.01488698,69734.0,69730.0,0.286817]
[1730483061796,0.01488698,69734.0,69733.0,0.143404]
[1730483062018,0.0281524,69734.0,69733.0,0.143404]
[1730483062257,0.04141782,69734.0,69733.0,0.143404]
[1730483062539,0.18481982,69734.0,69732.0,0.011]
[1730483062738,0.02653084,69733.0,69732.0,0.011]
[1730483062871,0.16993484,69733.0,69732.0,0.011]
[1730483063086,0.48500816,69733.0,69732.0,0.011]
[1730483063507,0.23808398,69733.0,69719.0,0.286864]
[1730483063682,0.430224,69731.0,69726.0,0.2151571]
[1730483063884,0.143424,69724.0,69721.0,0.143427]
[1730483064088,0.02653084,69723.0,69719.0,0.286864]
[1730483064286,0.04245314,69730.0,69708.0,0.19909446]
[1730483064287,0.02653084,69722.0,69708.0,0.19909446]
[1730483064490,0.143422,69725.0,69721.0,0.143428]
[1730483064671,0.02654404,69724.0,69719.0,0.286863]
[1730483064863,0.02654404,69723.0,69722.0,0.143425]
[1730483065285,0.02123639,69729.0,69721.0,0.291853]
[1730483065558,0.01327591,69723.0,69722.0,0.143426]
[1730483065745,0.143421,69725.0,69722.0,0.143426]
[1730483066038,0.02655206,69724.0,69723.0,0.143424]
[1730483066251,0.02655206,69724.0,69722.0,0.000821]
[1730483066252,0.16997506,69724.0,69722.0,0.000821]
[1730483066467,0.02655206,69723.0,69722.0,0.000821]
[1730483066884,0.02655206,69723.0,69722.0,0.010821]
[1730483066885,0.24607606,69723.0,69722.0,0.010821]
[1730483067309,0.26732762,69723.0,69722.0,0.010821]
[1730483067526,0.26732762,69723.0,69722.0,0.000821]
[1730483067527,0.28859185,69723.0,69722.0,0.000821]
[1730483068157,0.28859185,69723.0,69722.0,0.004821]
[1730483068354,0.28859185,69723.0,69722.0,0.000821]
[1730483068814,0.26734711,69723.0,69722.0,0.007821]
[1730483069032,0.28862013,69723.0,69722.0,0.007821]
[1730483069231,0.28862013,69723.0,69722.0,0.002821]
[1730483069722,0.28862013,69723.0,69722.0,0.005821]
[1730483069953,0.28862013,69723.0,69722.0,0.003821]
[1730483070180,0.28862013,69723.0,69722.0,0.000821]
[1730483070697,0.38402013,69723.0,69722.0,0.000821]
[1730483072554,0.34949266,69723.0,69722.0,0.000821]
[1730483072769,0.38409078,69723.0,69722.0,0.000821]
[1730483072990,0.38509078,69723.0,69722.0,0.000821]
[1730483073435,0.06916678,69723.0,69722.0,0.000821]
[1730483073669,0.06916678,69723.0,69722.0,0.144247]
[1730483074841,0.07016678,69723.0,69722.0,0.144247]
[1730483075246,0.07016678,69723.0,69722.0,0.154247]
[1730483075477,0.06916678,69723.0,69722.0,0.154247]
[1730483075699,0.06916678,69723.0,69722.0,0.164247]
[1730483075933,0.145059,69727.0,69722.0,0.020821]
[1730483076162,0.03463536,69723.0,69722.0,0.154247]
[1730483076413,0.0692712,69723.0,69722.0,0.010821]
[1730483076635,0.0692712,69723.0,69722.0,0.151247]
[1730483076868,0.0692712,69723.0,69722.0,0.160247]
[1730483077125,0.0692712,69723.0,69722.0,0.151247]
[1730483077783,0.0692712,69723.0,69722.0,0.144247]
[1730483078005,0.0692712,69723.0,69722.0,0.150247]
[1730483078697,0.07092353,69723.0,69722.0,0.144247]
[1730483078928,0.07092353,69723.0,69722.0,0.151247]
[1730483079382,0.07092353,69723.0,69722.0,0.144247]
[1730483079624,0.07092353,69723.0,69722.0,0.150247]
[1730483079876,0.07092353,69723.0,69722.0,0.156247]
[1730483080094,0.07092353,69723.0,69722.0,0.150247]
[1730483080320,0.07092353,69723.0,69722.0,0.155247]
[1730483081728,0.07092353,69723.0,69722.0,0.144247]
[1730483082186,0.07092353,69723.0,69722.0,0.149247]
[1730483082626,0.07092353,69723.0,69722.0,0.144247]
[1730483082893,0.07092353,69723.0,69722.0,0.153247]
[1730483083120,0.001642,69723.0,69722.0,0.149247]
[1730483083346,0.07100603,69723.0,69722.0,0.149247]
[1730483083814,0.07100603,69723.0,69722.0,0.153247]
[1730483084545,0.07100603,69723.0,69722.0,0.148247]
[1730483084990,0.07100603,69723.0,69722.0,0.42452859]
[1730483084991,0.04966345,69723.0,69722.0,0.42452859]
[1730483085226,0.02832047,69723.0,69722.0,0.42452859]
[1730483085445,0.02832047,69723.0,69722.0,0.41952859]
[1730483085679,0.02832047,69723.0,69722.0,0.42452859]
[1730483086134,0.02832047,69723.0,69722.0,0.42052859]
[1730483086373,0.02832047,69723.0,69722.0,0.42452859]
[1730483086614,0.01498136,69723.0,69722.0,0.42452859]
[1730483086848,0.01497626,69723.0,69722.0,0.42452859]
[1730483087101,0.01497626,69723.0,69722.0,0.42052859]
[1730483087572,0.001642,69723.0,69722.0,0.42052859]
[1730483087817,0.001642,69723.0,69722.0,0.43452859]
[1730483088097,0.001642,69723.0,69722.0,0.42052859]
[1730483088332,0.001642,69723.0,69722.0,0.41552859]
[1730483088586,0.001642,69723.0,69722.0,0.42952859]
[1730483088812,0.001642,69723.0,69722.0,0.92952859]
[1730483089039,0.001642,69723.0,69722.0,0.91552859]
[1730483089276,0.001642,69723.0,69722.0,0.658247]
[1730483090685,0.001642,69723.0,69722.0,0.672247]
[1730483090908,0.001642,69723.0,69722.0,0.658247]
[1730483091362,0.001642,69723.0,69722.0,0.644247]
[1730483091829,0.077442,69723.0,69722.0,0.658247]
[1730483092094,0.077442,69723.0,69722.0,0.514821]
[1730483092095,0.2475241,69723.0,69722.0,0.514821]
[1730483092311,0.29017669,69723.0,69722.0,0.514821]
[1730483092766,0.29017669,69723.0,69722.0,0.528821]
[1730483093014,0.29017669,69723.0,69722.0,0.514821]
[1730483093236,0.29017669,69723.0,69722.0,0.500821]
[1730483093457,0.29017669,69723.0,69722.0,0.514821]
[1730483093673,0.29017669,69723.0,69722.0,0.513821]
[1730483094643,0.75255036,69723.0,69722.0,0.244621]
[1730483094895,0.75255036,69723.0,69707.0,0.01448708]
[1730483094896,0.93287708,69723.0,69707.0,0.01448708]
[1730483095128,0.243455,69708.0,69707.0,0.01448708]
[1730483095366,0.38965777,69708.0,69707.0,0.01448708]
[1730483096107,0.48075777,69708.0,69707.0,0.51448708]
[1730483096339,0.48275777,69708.0,69707.0,0.51548708]
[1730483096569,0.48275777,69708.0,69707.0,0.51448708]
[1730483096570,0.48075777,69708.0,69707.0,0.51448708]
[1730483096800,0.48275777,69708.0,69707.0,0.51448708]
[1730483097019,0.61558411,69708.0,69707.0,0.01448708]
[1730483097255,0.61358411,69708.0,69707.0,0.01448708]
[1730483097702,0.61458411,69708.0,69707.0,0.01448708]
[1730483098426,0.63858411,69708.0,69707.0,0.01548708]
[1730483098656,0.56828134,69708.0,69707.0,0.01548708]
[1730483098874,0.63840107,69708.0,69707.0,0.01548708]
[1730483100394,0.61540107,69708.0,69707.0,0.01548708]
[1730483100819,0.48257473,69708.0,69707.0,0.01548708]
[1730483101037,0.48257473,69708.0,69707.0,0.01630808]
[1730483101248,0.48256093,69708.0,69707.0,0.01630808]
[1730483104240,0.413455,69708.0,69707.0,0.01630808]
[1730483104458,0.48244062,69708.0,69707.0,0.01630808]
[1730483105119,0.75937317,69708.0,69707.0,0.01630808]
[1730483106017,0.78237317,69708.0,69707.0,0.01630808]
[1730483106265,0.55310234,69698.0,69690.0,0.000821]
[1730483106478,0.76054321,69698.0,69690.0,0.000821]
[1730483106693,0.65168962,69698.0,69690.0,0.000821]
[1730483107168,0.8057039,69698.0,69690.0,0.000821]
[1730483107395,0.8287039,69698.0,69690.0,0.000821]
[1730483108034,0.82858931,69698.0,69690.0,0.000821]
[1730483108246,0.83858931,69698.0,69697.0,0.002821]
[1730483108460,0.83860355,69698.0,69697.0,0.002821]
[1730483108681,0.79240445,69698.0,69697.0,0.001821]
[1730483109798,0.63657811,69698.0,69697.0,0.001821]
[1730483110036,0.45059446,69698.0,69697.0,0.002821]
[1730483110253,0.32941081,69698.0,69697.0,0.002821]
[1730483111175,0.62359544,69698.0,69697.0,0.002821]
[1730483111405,0.81909544,69698.0,69697.0,0.002821]
[1730483111614,0.76323981,69698.0,69697.0,0.002821]
[1730483112054,0.57543125,69698.0,69697.0,0.002821]
[1730483112306,0.48293125,69698.0,69697.0,0.002821]
[1730483112525,0.49616207,69698.0,69697.0,0.002821]
[1730483112733,0.5305608,69698.0,69697.0,0.002821]
[1730483113385,0.51732998,69698.0,69697.0,0.002821]
[1730483113616,0.66982952,69698.0,69697.0,0.002821]
[1730483113856,0.47471634,69691.0,69690.0,0.000821]
[1730483114094,0.72150187,69691.0,69690.0,0.000821]
[1730483114330,0.266496,69688.0,69687.0,0.000821]
[1730483114539,0.49578633,69688.0,69687.0,0.000821]
[1730483114792,0.61222682,69688.0,69687.0,0.000821]
[1730483114998,0.69502682,69688.0,69687.0,0.000821]
[1730483115217,0.73061828,69688.0,69687.0,0.000821]
[1730483115889,0.73961828,69688.0,69687.0,0.001821]
[1730483116135,0.243546,69664.0,69663.0,0.1]
[1730483116383,0.56789109,69664.0,69663.0,0.1]
[1730483116633,0.65107997,69664.0,69663.0,0.1]
[1730483117083,0.86623707,69664.0,69663.0,0.1]
[1730483117345,0.65107997,69664.0,69663.0,0.1]
[1730483117592,0.67222834,69664.0,69663.0,0.1]
[1730483117816,0.67522834,69664.0,69663.0,0.1]
[1730483118063,0.69822834,69664.0,69663.0,0.1]
[1730483118597,0.70322834,69664.0,69663.0,0.1]
[1730483119293,1.20735034,69664.0,69663.0,0.1]
[1730483119554,0.97016322,69664.0,69663.0,0.04258]
[1730483119793,0.266566,69654.0,69653.0,0.000822]
[1730483120011,0.53784759,69654.0,69653.0,0.000822]
[1730483120231,0.60650595,69654.0,69653.0,0.000822]
[1730483120478,0.47367961,69654.0,69653.0,0.000822]
[1730483120964,0.61447696,69654.0,69653.0,0.000822]
[1730483121216,0.45067961,69654.0,69653.0,0.000822]
[1730483121665,0.30509871,69654.0,69653.0,0.000822]
[1730483122116,0.31909871,69654.0,69653.0,0.000822]
[1730483122589,0.07553271,69654.0,69653.0,0.000822]
[1730483122813,0.05440706,69654.0,69653.0,0.14439]
[1730483123477,0.04041258,69654.0,69653.0,0.14439]
[1730483123704,0.02720353,69654.0,69653.0,0.14439]
[1730483124146,0.02720353,69654.0,69653.0,0.14539]
[1730483124385,0.01320353,69654.0,69653.0,0.14539]
[1730483124860,0.01420353,69654.0,69653.0,0.14639]
[1730483125832,0.01420353,69654.0,69653.0,0.002822]
[1730483125833,0.46281634,69654.0,69653.0,0.002822]
[1730483126042,0.48397057,69654.0,69653.0,0.002822]
[1730483126478,0.46281634,69654.0,69653.0,0.002822]
[1730483126693,0.46185112,69654.0,69653.0,0.001822]
[1730483127263,0.30515135,69654.0,69653.0,0.002822]
[1730483127497,0.30515135,69654.0,69653.0,0.000822]
[1730483127971,0.31915135,69654.0,69653.0,0.001822]
[1730483129170,0.31915135,69654.0,69653.0,0.000822]
[1730483129171,0.64333283,69654.0,69653.0,0.000822]
[1730483129418,0.84084038,69654.0,69653.0,0.000822]
[1730483129649,0.8628478,69654.0,69653.0,0.000822]
[1730483129869,0.266568,69653.0,69652.0,1.3464516]
[1730483130098,0.49664627,69653.0,69652.0,1.3464516]
[1730483130328,0.63512357,69653.0,69652.0,1.3464516]
[1730483130782,0.85028067,69653.0,69652.0,1.3464516]
[1730483131008,0.72542357,69653.0,69652.0,1.3464516]
[1730483131458,0.73942357,69653.0,69652.0,1.3464516]
[1730483132974,0.60094627,69653.0,69652.0,1.3464516]
[1730483133871,0.50164627,69653.0,69652.0,1.3464516]
[1730483134082,0.26319102,69653.0,69652.0,1.23868585]
[1730483134289,0.22883706,69653.0,69652.0,1.23868585]
[1730483134501,0.26323868,69653.0,69652.0,1.23868585]
[1730483135172,0.07563301,69653.0,69652.0,1.23868585]
[1730483135388,0.07563301,69653.0,69652.0,1.38225585]
[1730483136035,0.06163301,69653.0,69652.0,1.54985585]
[1730483136245,0.04840162,69653.0,69652.0,1.54985585]
[1730483136483,0.02723139,69653.0,69652.0,1.54985585]
[1730483136694,0.04123139,69653.0,69652.0,1.54985585]
[1730483137120,0.02723139,69653.0,69652.0,1.54985585]
[1730483137353,0.01323139,69653.0,69652.0,1.54985585]
[1730483137577,0.01423139,69653.0,69652.0,1.55485585]
[1730483137817,0.03747367,69653.0,69652.0,1.55485585]
[1730483138037,0.03711767,69653.0,69652.0,1.55485585]
[1730483138469,0.05137822,69653.0,69652.0,1.24668585]
[1730483138688,0.19494622,69653.0,69652.0,1.24368585]
[1730483138950,0.19394622,69653.0,69652.0,1.24168585]
[1730483139177,0.50932149,69653.0,69652.0,1.24168585]
[1730483139422,0.51032149,69653.0,69652.0,1.24568585]
[1730483139642,0.43340147,69653.0,69652.0,1.24568585]
[1730483139868,0.29394622,69653.0,69652.0,1.23868585]
[1730483140058,0.05037822,69653.0,69652.0,1.23868585]
[1730483140296,0.05137822,69653.0,69652.0,1.38825585]
[1730483140705,0.05137822,69653.0,69652.0,1.38525585]
[1730483141142,0.05111767,69653.0,69652.0,1.38325585]
[1730483141363,0.03092858,69653.0,69652.0,1.38625585]
[1730483141571,0.06446849,69653.0,69652.0,1.38325585]
[1730483141778,0.06451464,69653.0,69652.0,1.46165585]
[1730483141981,0.06551464,69653.0,69652.0,1.46465585]
[1730483142198,0.05151464,69653.0,69652.0,1.6021111]
[1730483142464,0.05151464,69653.0,69652.0,1.6957111]
[1730483142465,0.011019,69653.0,69652.0,1.6957111]
[1730483142704,0.001644,69688.0,69652.0,1.6957111]
[1730483142705,0.001644,69688.0,69668.0,0.223437]
[1730483143141,0.287,69687.0,69668.0,0.223437]
[1730483143362,0.001644,69688.0,69668.0,0.0799]
[1730483143581,0.001644,69688.0,69658.0,0.0799]
[1730483143582,0.03456174,69675.0,69658.0,0.0799]
[1730483143835,0.03456174,69674.0,69659.0,0.2151571]
[1730483144131,0.14353,69672.0,69668.0,0.143536]
[1730483144612,0.03456534,69671.0,69668.0,0.143536]
[1730483144847,0.03456534,69670.0,69668.0,0.144536]
[1730483145090,0.03456534,69669.0,69667.0,0.287079]
[1730483145329,0.143526,69674.0,69669.0,0.143534]
[1730483145539,0.143528,69673.0,69669.0,0.143534]
[1730483145776,0.143528,69673.0,69668.0,0.149535]
[1730483145777,0.15681803,69672.0,69668.0,0.149535]
[1730483145989,0.03454889,69671.0,69668.0,0.143535]
[1730483146243,0.03454889,69670.0,69668.0,0.143535]
[1730483146463,0.03554889,69669.0,69668.0,0.143535]
[1730483146869,0.03454889,69669.0,69668.0,0.143535]
[1730483147086,0.31653914,69669.0,69668.0,0.003]
[1730483147302,0.31653914,69669.0,69668.0,0.008]
[1730483147542,0.41653914,69669.0,69668.0,0.005]
[1730483147964,0.41652739,69669.0,69668.0,0.005]
[1730483148170,0.46078431,69669.0,69668.0,0.008]
[1730483148388,0.48760968,69669.0,69668.0,0.003]
[1730483148613,0.46078431,69669.0,69668.0,0.003]
[1730483148826,0.46178431,69669.0,69668.0,0.008]
[1730483149200,0.46178431,69669.0,69652.0,1.38225485]
[1730483149201,0.1,69668.0,69654.0,0.143566]
[1730483149421,0.14356,69657.0,69654.0,0.143566]
[1730483149645,0.143568,69653.0,69652.0,1.23868585]
[1730483150684,0.143564,69655.0,69652.0,1.23868585]
[1730483150851,0.143567,69654.0,69652.0,1.23868585]
[1730483151055,0.02124507,69657.0,69656.0,0.143562]
[1730483151266,0.01327835,69657.0,69654.0,0.287133]
[1730483151474,0.02124507,69662.0,69655.0,0.287129]
[1730483151665,0.143548,69663.0,69655.0,0.287129]
[1730483151666,0.2151571,69660.0,69657.0,0.143558]
[1730483151901,0.15683246,69661.0,69652.0,1.23968585]
[1730483151902,0.287097,69663.0,69653.0,0.287136]
[1730483152102,0.11645169,69662.0,69657.0,0.143559]
[1730483152305,0.143558,69658.0,69655.0,0.143563]
[1730483152506,0.287102,69662.0,69654.0,0.288133]
[1730483152761,0.03452847,69661.0,69658.0,0.143556]
[1730483152963,0.143551,69662.0,69658.0,0.143556]
[1730483153178,0.01328009,69661.0,69658.0,0.143556]
[1730483153331,0.143555,69660.0,69657.0,0.143559]
[1730483153532,0.001,69658.0,69655.0,0.006]
[1730483154134,0.143562,69656.0,69655.0,0.006]
[1730483154584,0.15684745,69656.0,69655.0,0.006]
[1730483154736,0.15684745,69656.0,69653.0,0.143568]
[1730483154938,0.01328653,69655.0,69653.0,0.291135]
[1730483155148,0.15685253,69654.0,69652.0,1.23868585]
[1730483155350,0.143563,69656.0,69653.0,0.143568]
[1730483155600,0.01328656,69655.0,69653.0,0.143566]
[1730483155803,0.01328656,69654.0,69653.0,0.143568]
[1730483156007,0.01328656,69656.0,69652.0,1.23868585]
[1730483156212,0.01328672,69655.0,69654.0,0.143566]
[1730483156380,0.01428672,69655.0,69654.0,0.143566]
[1730483156584,0.001,69655.0,69654.0,0.143566]
[1730483156800,0.001,69655.0,69653.0,0.01]
[1730483157185,0.01428672,69655.0,69653.0,0.01]
[1730483157350,0.01328672,69654.0,69653.0,0.004]
[1730483157550,0.01328672,69654.0,69653.0,0.147568]
[1730483157770,0.01329005,69656.0,69653.0,0.004]
[1730483157970,0.01329031,69655.0,69654.0,0.430699]
[1730483158201,0.143553,69661.0,69657.0,0.143559]
[1730483158402,0.02658226,69660.0,69657.0,0.143559]
[1730483158599,0.02658226,69660.0,69654.0,0.003]
[1730483158600,0.1568471,69659.0,69654.0,0.287133]
[1730483158806,0.0132911,69658.0,69656.0,0.143562]
[1730483159006,0.0132911,69657.0,69656.0,0.143562]
[1730483159332,0.0212645,69661.0,69655.0,0.143564]
[1730483159333,0.1568491,69658.0,69655.0,0.143564]
[1730483159496,0.0132911,69657.0,69655.0,0.143564]
[1730483159683,0.143552,69661.0,69657.0,0.14356]
[1730483159879,0.1568465,69660.0,69657.0,0.143559]
[1730483160079,0.0132925,69659.0,69657.0,0.143559]
[1730483160285,0.06981435,69658.0,69656.0,0.003]
[1730483160488,0.81019108,69657.0,69656.0,0.003]
[1730483160687,0.68354409,69657.0,69656.0,0.003]
[1730483161357,0.68354409,69657.0,69656.0,0.004]
[1730483161587,0.68354409,69657.0,69656.0,0.003]
[1730483161588,0.66227035,69657.0,69656.0,0.003]
[1730483161797,0.243568,69653.0,69652.0,1.23868585]
[1730483161973,0.46081091,69653.0,69652.0,1.23868585]
[1730483163079,0.47481091,69653.0,69652.0,1.23968585]
[1730483163685,0.48881091,69653.0,69652.0,1.24068585]
[1730483164311,0.4445688,69653.0,69652.0,1.24068585]
[1730483164785,0.171568,69653.0,69652.0,1.24068585]
[1730483165234,0.028,69653.0,69652.0,1.38425585]
[1730483165439,0.028,69653.0,69652.0,1.24068585]
[1730483165651,0.171568,69653.0,69652.0,1.24068585]
[1730483165862,0.028,69653.0,69652.0,1.38425585]
[1730483166069,0.06254947,69653.0,69652.0,1.38425585]
[1730483166282,0.04128826,69653.0,69652.0,1.38425585]
[1730483166973,0.02728826,69653.0,69652.0,1.38325585]
[1730483167218,0.014,69653.0,69652.0,1.38325585]
[1730483167645,0.2151571,69660.0,69659.0,0.143556]
[1730483167854,0.22844797,69660.0,69659.0,0.143556]
[1730483168070,0.22844797,69660.0,69658.0,0.143557]
[1730483168071,0.01329087,69660.0,69658.0,0.143557]
[1730483168317,0.01329087,69660.0,69657.0,0.143558]
[1730483168534,0.01329087,69660.0,69658.0,0.143558]
[1730483168756,0.15684587,69660.0,69656.0,0.143562]
[1730483168970,0.2151571,69664.0,69655.0,0.287127]
[1730483169222,0.0132913,69663.0,69660.0,0.143552]
[1730483169440,0.01329221,69663.0,69660.0,0.143552]
[1730483169674,0.01329221,69663.0,69661.0,0.143551]
[1730483169899,0.01329221,69663.0,69659.0,0.29111]
[1730483170118,0.387063,69672.0,69659.0,0.29111]
[1730483170119,0.01329179,69664.0,69661.0,0.27502623]
[1730483170349,0.2151571,69675.0,69672.0,0.143529]
[1730483171027,0.001644,69688.0,69672.0,0.143529]
[1730483171254,0.286999,69687.0,69672.0,0.14639916]
[1730483171467,0.143505,69684.0,69672.0,0.14639916]
[1730483171711,0.01329662,69682.0,69672.0,0.14639916]
[1730483172172,0.002644,69673.0,69672.0,0.01]
[1730483172393,0.29862625,69673.0,69672.0,0.011]
[1730483172609,0.54345894,69673.0,69672.0,0.011]
[1730483172837,0.54345894,69673.0,69672.0,0.001]
[1730483172838,0.70762381,69673.0,69672.0,0.001]
[1730483173112,0.0361992,69673.0,69657.0,0.00287097]
[1730483173346,0.002644,69673.0,69672.0,0.226129]
[1730483173576,0.002644,69673.0,69672.0,0.36458425]
[1730483173797,0.001644,69673.0,69672.0,0.35758425]
[1730483174017,0.0149342,69673.0,69672.0,0.35758425]
[1730483174248,0.0149342,69673.0,69672.0,0.36858425]
[1730483174249,0.0159342,69673.0,69672.0,0.36858425]
[1730483174467,0.015644,69673.0,69672.0,0.35858425]
[1730483174977,0.016644,69673.0,69672.0,0.46148425]
[1730483175623,0.001644,69673.0,69672.0,0.44948425]
[1730483176066,0.003644,69673.0,69672.0,0.46848425]
[1730483176485,0.002644,69673.0,69672.0,0.46148425]
[1730483176906,0.003644,69673.0,69672.0,0.46848425]
[1730483179119,0.003644,69673.0,69672.0,0.56848425]
[1730483179765,0.003644,69673.0,69672.0,0.46848425]
[1730483180704,0.003644,69673.0,69672.0,0.47063697]
[1730483181407,0.001644,69688.0,69687.0,0.242898]
[1730483181609,0.001644,69688.0,69687.0,0.38422266]
[1730483181810,0.05,69708.0,69700.0,0.143472]
[1730483182414,0.05,69708.0,69705.0,0.14346]
[1730483182656,0.05,69708.0,69707.0,0.143457]